bitfinex/quotes_BTCUSD_20250917
["timestamp","ask_amount","ask_price","bid_price","bid_amount"]
[1758127725658,0.28762546,115630.0,115620.0,0.73961725]
[1758127726079,0.28766546,115630.0,115620.0,0.73961725]
[1758127726294,0.28767619,115630.0,115620.0,0.73961725]
[1758127726493,0.28767619,115630.0,115620.0,1.13961725]
[1758127726693,0.28667619,115630.0,115620.0,1.13861725]
[1758127726917,0.28767619,115630.0,115620.0,1.14261725]
[1758127727277,0.2716,115630.0,115620.0,1.14261725]
[1758127735591,0.001,115630.0,115620.0,1.14261725]
[1758127735809,0.0001,115640.0,115630.0,0.20311739]
[1758127736015,0.0001,115640.0,115630.0,0.29843464]
[1758127736222,0.27046,115650.0,115640.0,0.17295053]
[1758127736421,0.27046,115650.0,115640.0,0.53910392]
[1758127736422,0.28648305,115650.0,115640.0,0.53910392]
[1758127736637,0.27036,115650.0,115640.0,0.17295053]
[1758127736790,0.27036,115650.0,115640.0,0.53910392]
[1758127736990,0.27036,115650.0,115640.0,0.17295053]
[1758127737392,0.27036,115650.0,115640.0,0.53910392]
[1758127737597,0.27136,115650.0,115640.0,0.17395053]
[1758127739880,0.27136,115650.0,115640.0,0.54020392]
[1758127741892,0.27136,115650.0,115640.0,0.58544744]
[1758127742749,0.27136,115650.0,115640.0,0.58115744]
[1758127743459,0.68275691,115650.0,115640.0,0.16976053]
[1758127743691,0.28746867,115650.0,115640.0,0.19991243]
[1758127743909,0.69886558,115650.0,115640.0,0.19991243]
[1758127746090,0.28746867,115650.0,115640.0,0.19991243]
[1758127747153,0.69886514,115650.0,115640.0,0.19991243]
[1758127747788,0.28766823,115650.0,115640.0,0.61130934]
[1758127749473,0.28766823,115650.0,115640.0,0.19991243]
[1758127749678,0.28766823,115650.0,115640.0,0.61130934]
[1758127751893,0.28766823,115650.0,115640.0,0.65290228]
[1758127752249,0.28766823,115650.0,115640.0,0.61130934]
[1758127754458,0.27156,115650.0,115640.0,0.61130934]
[1758127754904,0.27156,115650.0,115640.0,0.19991243]
[1758127755138,0.27156,115650.0,115640.0,0.61130934]
[1758127756707,0.27156,115650.0,115640.0,0.19991243]
[1758127756906,0.27156,115650.0,115640.0,0.61130934]
[1758127760001,0.27156,115650.0,115640.0,0.19991243]
[1758127762329,0.68295691,115650.0,115640.0,0.19991243]
[1758127768150,0.27156,115650.0,115640.0,0.19991243]
[1758127768361,0.68295691,115650.0,115640.0,0.19991243]
[1758127769123,0.27156,115650.0,115640.0,0.61130934]
[1758127769559,0.27156,115650.0,115640.0,0.61582568]
[1758127769886,0.001,115650.0,115640.0,0.61582568]
[1758127770071,0.27124,115650.0,115640.0,0.61582568]
[1758127770640,0.001,115650.0,115640.0,0.61582568]
[1758127770853,0.27124,115650.0,115640.0,0.61582568]
[1758127771831,0.27124,115650.0,115640.0,0.28209828]
[1758127772046,0.27124,115650.0,115640.0,0.69349519]
[1758127772626,0.27124,115650.0,115640.0,0.77876486]
[1758127772876,0.001,115650.0,115640.0,1.19016177]
[1758127773092,0.001,115650.0,115640.0,0.86403453]
[1758127773378,0.27024,115660.0,115650.0,0.17293558]
[1758127773577,0.27024,115660.0,115650.0,0.58433249]
[1758127773878,0.27024,115660.0,115650.0,0.9957294]
[1758127774082,0.09358,115670.0,115660.0,0.17292062]
[1758127774313,0.36382,115670.0,115660.0,0.61715834]
[1758127775046,0.36372,115670.0,115660.0,0.61715834]
[1758127775255,0.27024,115670.0,115660.0,0.61720531]
[1758127775874,0.27024,115670.0,115660.0,0.5843645]
[1758127776376,0.27024,115670.0,115660.0,0.5844645]
[1758127776786,0.27124,115670.0,115660.0,0.5854645]
[1758127777563,0.27024,115670.0,115660.0,0.5844645]
[1758127777969,0.27124,115670.0,115660.0,0.5854645]
[1758127778197,0.27124,115670.0,115660.0,0.67073417]
[1758127778867,0.27024,115670.0,115660.0,0.66973417]
[1758127779174,0.27024,115670.0,115660.0,0.25833726]
[1758127779354,0.27024,115670.0,115660.0,0.5844645]
[1758127780320,0.27124,115670.0,115660.0,0.5854645]
[1758127783179,0.001,115670.0,115660.0,0.5854645]
[1758127786108,0.001,115670.0,115660.0,0.70088607]
[1758127786320,0.001,115670.0,115660.0,0.28948916]
[1758127786519,1e-08,115670.0,115660.0,0.78615574]
[1758127786746,1e-08,115670.0,115660.0,0.86382525]
[1758127787098,1e-08,115670.0,115660.0,1.26382525]
[1758127787509,0.2707,115690.0,115680.0,0.17289073]
[1758127787880,0.2706,115690.0,115680.0,0.17289073]
[1758127788065,0.2706,115690.0,115680.0,0.58428764]
[1758127788902,0.2716,115690.0,115680.0,0.58628764]
[1758127789471,0.2716,115690.0,115680.0,0.65593315]
[1758127789911,0.2716,115690.0,115680.0,0.65603315]
[1758127791216,0.2716,115690.0,115680.0,0.68618505]
[1758127797953,0.2716,115690.0,115680.0,0.27478814]
[1758127798158,0.68299691,115690.0,115680.0,0.27478814]
[1758127798803,0.2716,115690.0,115680.0,0.27478814]
[1758127799131,0.2716,115690.0,115680.0,0.68618505]
[1758127799132,0.0014,115690.0,115680.0,0.68618505]
[1758127799575,0.27156,115690.0,115680.0,0.68618505]
[1758127800192,0.27156,115690.0,115680.0,0.27478814]
[1758127800404,0.27156,115690.0,115680.0,0.60514263]
[1758127801043,0.27156,115690.0,115680.0,0.20514263]
[1758127801254,0.27156,115690.0,115680.0,0.61653954]
[1758127801467,0.27156,115690.0,115680.0,1.01653954]
[1758127802308,0.27156,115690.0,115680.0,0.60514263]
[1758127802908,0.27156,115690.0,115680.0,0.6904123]
[1758127805145,0.27156,115690.0,115680.0,0.60514263]
[1758127805351,0.27156,115690.0,115680.0,0.20514263]
[1758127805980,0.27156,115690.0,115680.0,0.60514263]
[1758127808354,0.66724451,115690.0,115680.0,0.20514263]
[1758127810810,0.30179,115690.0,115680.0,0.20514263]
[1758127811024,0.66724451,115690.0,115680.0,0.20514263]
[1758127811534,0.75251418,115690.0,115680.0,0.17499073]
[1758127812033,0.66734451,115690.0,115680.0,0.17499073]
[1758127814328,1.18022029,115690.0,115680.0,0.17499073]
[1758127815198,1.00734451,115690.0,115680.0,0.17499073]
[1758127815446,1.18022029,115690.0,115680.0,0.17499073]
[1758127815856,1.00734451,115690.0,115680.0,0.17499073]
[1758127816650,1.35075963,115690.0,115680.0,0.002]
[1758127816854,1.35075963,115690.0,115680.0,0.17489073]
[1758127817664,1.26548996,115690.0,115680.0,0.17489073]
[1758127819212,1.26548996,115690.0,115680.0,0.002]
[1758127819571,1.26548996,115690.0,115680.0,0.17489073]
[1758127819775,1.26548996,115690.0,115680.0,0.002]
[1758127820197,1.26548996,115690.0,115680.0,0.17489073]
[1758127820424,1.26548996,115690.0,115680.0,0.002]
[1758127821304,1.26548996,115690.0,115680.0,0.17489073]
[1758127821733,1.26548996,115690.0,115680.0,0.002]
[1758127822499,1.65692038,115690.0,115680.0,0.002]
[1758127822905,1.29146587,115690.0,115680.0,0.002]
[1758127823333,1.65692038,115690.0,115680.0,0.002]
[1758127823738,1.6730294,115690.0,115680.0,0.002]
[1758127823996,1.75829907,115690.0,115680.0,0.002]
[1758127825448,0.17290567,115670.0,115660.0,4.697e-05]
[1758127825653,0.89374985,115670.0,115660.0,4.697e-05]
[1758127825984,0.92397985,115670.0,115660.0,4.697e-05]
[1758127826574,0.92407985,115670.0,115660.0,0.00204697]
[1758127826778,0.92507985,115670.0,115660.0,0.00204697]
[1758127827169,0.94070399,115670.0,115660.0,0.00204697]
[1758127827595,0.96678968,115670.0,115660.0,0.00204697]
[1758127827825,0.94070399,115670.0,115660.0,0.00204697]
[1758127828290,0.92507985,115670.0,115660.0,0.00204697]
[1758127830829,0.95106196,115670.0,115660.0,0.00204697]
[1758127833880,0.92507985,115670.0,115660.0,0.00204697]
[1758127834059,0.58560745,115670.0,115660.0,0.00204697]
[1758127834232,0.95106196,115670.0,115660.0,0.00204697]
[1758127837147,1.37633163,115670.0,115660.0,0.00204697]
[1758127838157,1.29106196,115670.0,115660.0,0.00204697]
[1758127839313,1.30714818,115670.0,115660.0,0.00204697]
[1758127843282,1.30715936,115670.0,115660.0,0.00204697]
[1758127849404,1.40059936,115670.0,115660.0,0.00204697]
[1758127852154,1.01208936,115670.0,115660.0,0.00204697]
[1758127852357,0.04317951,115670.0,115660.0,0.65584367]
[1758127852565,0.001,115670.0,115660.0,0.74111334]
[1758127852765,0.001,115670.0,115660.0,0.76708621]
[1758127854199,0.001,115670.0,115660.0,0.4017317]
[1758127854551,0.001,115670.0,115660.0,0.76718621]
[1758127854756,0.001,115670.0,115660.0,0.4017317]
[1758127855375,0.001,115670.0,115660.0,0.31646203]
[1758127855994,0.001,115670.0,115660.0,0.71646203]
[1758127856915,0.63575451,115680.0,115670.0,0.20305757]
[1758127857263,0.63575451,115680.0,115670.0,0.20315757]
[1758127857678,0.2703,115680.0,115670.0,0.20315757]
[1758127858106,0.2703,115680.0,115670.0,0.28842724]
[1758127858845,0.2713,115680.0,115670.0,0.28942724]
[1758127859050,0.2712,115680.0,115670.0,0.28942724]
[1758127859979,0.2712,115680.0,115670.0,0.29794522]
[1758127860229,0.001,115680.0,115670.0,0.66339973]
[1758127860443,0.27152,115680.0,115670.0,0.66339973]
[1758127860896,0.27152,115680.0,115670.0,1.06339973]
[1758127861616,1e-08,115680.0,115670.0,1.1486694]
[1758127861855,1e-08,115680.0,115670.0,1.17463887]
[1758127862044,0.27088,115690.0,115680.0,0.17289073]
[1758127862253,0.27088,115690.0,115680.0,0.73903648]
[1758127862484,0.0004,115690.0,115680.0,0.73903648]
[1758127863200,0.0004,115690.0,115680.0,0.76500454]
[1758127863735,0.0014,115690.0,115680.0,0.76800454]
[1758127863961,0.0014,115690.0,115680.0,1.22459353]
[1758127864412,0.0014,115690.0,115680.0,1.62459353]
[1758127864650,0.36432,115700.0,115690.0,0.20302768]
[1758127864850,0.36432,115700.0,115690.0,0.68369494]
[1758127865450,0.2708,115700.0,115690.0,0.76896461]
[1758127866004,0.2718,115700.0,115690.0,0.77196461]
[1758127866210,0.2718,115700.0,115690.0,0.77206461]
[1758127866454,0.2718,115700.0,115690.0,0.79803172]
[1758127866631,0.2718,115700.0,115690.0,1.19803172]
[1758127867248,0.0014,115700.0,115690.0,1.19803172]
[1758127867893,0.0001,115720.0,115710.0,0.5429978]
[1758127868147,0.0001,115720.0,115710.0,1.49495889]
[1758127868750,0.41270175,115740.0,115720.0,0.20298287]
[1758127868965,0.41270175,115740.0,115730.0,0.2580857]
[1758127869178,0.41317331,115740.0,115730.0,0.2580857]
[1758127869859,0.00215156,115740.0,115730.0,0.2580857]
[1758127870099,0.00215156,115740.0,115730.0,0.28404369]
[1758127870324,0.41317331,115740.0,115730.0,0.68404369]
[1758127870741,0.41317331,115740.0,115730.0,0.76931336]
[1758127871170,0.41317331,115740.0,115730.0,0.62892592]
[1758127871834,0.00215156,115740.0,115730.0,0.62892592]
[1758127872042,0.41317331,115740.0,115730.0,0.62892592]
[1758127873337,0.41317331,115740.0,115730.0,0.22892592]
[1758127873760,0.00215156,115740.0,115730.0,0.62892592]
[1758127873966,0.41317331,115740.0,115730.0,0.62902592]
[1758127874244,0.00215156,115740.0,115730.0,0.62902592]
[1758127874496,0.41317331,115740.0,115730.0,0.62902592]
[1758127874708,0.41417331,115740.0,115730.0,0.62902592]
[1758127876279,0.86877239,115740.0,115730.0,0.62902592]
[1758127876478,1.02695616,115740.0,115730.0,0.60306793]
[1758127876691,1.02695616,115740.0,115730.0,0.17291603]
[1758127876692,0.03211156,115740.0,115730.0,0.17291603]
[1758127876886,0.85415506,115740.0,115730.0,0.20306793]
[1758127877113,1.02695616,115740.0,115730.0,0.17291603]
[1758127877529,0.85415506,115740.0,115730.0,0.17291603]
[1758127877948,1.02695616,115740.0,115730.0,0.17291603]
[1758127878805,1.02705616,115740.0,115730.0,0.17291603]
[1758127882139,1.04310958,115740.0,115730.0,0.17291603]
[1758127883866,0.87030848,115740.0,115730.0,0.17291603]
[1758127884080,0.70036673,115740.0,115730.0,0.27765263]
[1758127884559,0.68427331,115740.0,115730.0,0.27765263]
[1758127884790,0.00197156,115740.0,115730.0,0.27765263]
[1758127885003,0.68427331,115740.0,115730.0,0.27765263]
[1758127885215,0.68427331,115740.0,115730.0,0.67765263]
[1758127885633,0.68417331,115740.0,115730.0,0.67765263]
[1758127886137,0.68417331,115740.0,115730.0,0.60306793]
[1758127886914,0.27315156,115740.0,115730.0,0.60306793]
[1758127887115,0.27311156,115740.0,115730.0,0.60306793]
[1758127887336,0.27311156,115740.0,115730.0,1.09935935]
[1758127887491,0.27311156,115740.0,115730.0,0.6883376]
[1758127887696,0.68413331,115740.0,115730.0,0.6883376]
[1758127887901,0.68313331,115740.0,115730.0,0.6883376]
[1758127888303,0.68313331,115740.0,115730.0,0.6893376]
[1758127888511,0.27211156,115740.0,115730.0,0.77360727]
[1758127888710,0.68313331,115740.0,115730.0,0.77360727]
[1758127888918,0.68313331,115740.0,115730.0,0.77560727]
[1758127889489,0.27211156,115740.0,115730.0,0.77560727]
[1758127890624,0.27211156,115740.0,115730.0,0.37560727]
[1758127891079,0.68313331,115740.0,115730.0,0.77560727]
[1758127892719,0.27211156,115740.0,115730.0,0.77560727]
[1758127892878,0.27191156,115740.0,115730.0,0.77560727]
[1758127893076,0.27191156,115740.0,115730.0,1.18662902]
[1758127894449,0.00087156,115740.0,115730.0,1.18662902]
[1758127894856,0.0005,115760.0,115750.0,0.20293807]
[1758127895079,0.00064143,115760.0,115750.0,0.78449916]
[1758127895253,0.00064143,115760.0,115750.0,0.77347741]
[1758127895454,0.00064143,115760.0,115750.0,1.45573916]
[1758127896061,0.00064143,115760.0,115750.0,1.18649916]
[1758127896258,0.00054143,115760.0,115750.0,1.45769916]
[1758127898312,0.00054143,115760.0,115750.0,1.18649916]
[1758127898511,0.00054143,115760.0,115750.0,1.45761916]
[1758127899129,0.00054143,115760.0,115750.0,1.18649916]
[1758127899342,0.00054143,115760.0,115750.0,1.45557916]
[1758127899554,0.00054143,115760.0,115750.0,1.18749916]
[1758127899813,0.00054143,115760.0,115750.0,1.45857916]
[1758127900541,0.00054143,115760.0,115750.0,1.18759916]
[1758127901017,0.00054143,115760.0,115750.0,1.10232949]
[1758127901210,0.00054143,115760.0,115750.0,1.37344949]
[1758127901431,0.00054143,115760.0,115750.0,0.69130774]
[1758127901731,0.00054143,115760.0,115750.0,1.37340949]
[1758127902872,0.00054143,115760.0,115750.0,1.37040949]
[1758127903284,0.00054143,115760.0,115750.0,1.45867916]
[1758127903492,0.00054143,115760.0,115750.0,1.18759916]
[1758127903817,0.00054143,115760.0,115750.0,0.96234774]
[1758127904017,0.00054143,115760.0,115750.0,0.69130774]
[1758127904220,0.41366318,115760.0,115750.0,0.60603807]
[1758127904439,0.61910318,115760.0,115750.0,0.60603807]
[1758127904662,0.61700318,115760.0,115750.0,0.60603807]
[1758127905325,0.20598143,115760.0,115750.0,0.60603807]
[1758127907306,0.20598143,115760.0,115750.0,0.20603807]
[1758127907648,0.20598143,115760.0,115750.0,0.60603807]
[1758127908423,0.20598143,115760.0,115750.0,0.69130774]
[1758127909244,0.27150143,115760.0,115750.0,0.69130774]
[1758127909454,0.27150143,115760.0,115750.0,1.10232949]
[1758127909927,0.00054143,115760.0,115750.0,1.18759916]
[1758127912140,0.00054143,115760.0,115750.0,1.23759916]
[1758127914671,0.36438,115780.0,115770.0,0.25290822]
[1758127914672,1e-08,115780.0,115770.0,0.25290822]
[1758127914908,0.0005,115790.0,115780.0,0.2528933]
[1758127915026,0.0005,115790.0,115780.0,1.14918472]
[1758127915230,0.0005,115790.0,115780.0,1.21358678]
[1758127915640,0.0005,115790.0,115780.0,1.48534678]
[1758127915852,0.0005,115790.0,115780.0,1.50421282]
[1758127916510,0.0005,115790.0,115780.0,1.50431282]
[1758127916511,0.0004,115790.0,115780.0,1.50431282]
[1758127916921,0.0004,115790.0,115780.0,1.45431282]
[1758127917355,0.0004,115790.0,115780.0,1.09329107]
[1758127917607,0.0004,115790.0,115780.0,1.23255282]
[1758127918846,0.0004,115790.0,115780.0,1.18255282]
[1758127919048,0.0004,115790.0,115780.0,1.18355282]
[1758127919255,0.0004,115790.0,115780.0,1.23355282]
[1758127919467,0.0004,115790.0,115780.0,1.18355282]
[1758127922450,0.0004,115790.0,115780.0,1.04401107]
[1758127922655,0.0004,115790.0,115780.0,1.45503282]
[1758127924718,0.0004,115790.0,115780.0,1.18355282]
[1758127924917,0.0004,115790.0,115780.0,1.04393107]
[1758127925077,0.0004,115790.0,115780.0,1.45495282]
[1758127925345,0.0004,115790.0,115780.0,1.18355282]
[1758127925550,0.0004,115790.0,115780.0,0.76217638]
[1758127928921,0.0004,115790.0,115780.0,0.69777432]
[1758127930821,0.0004,115790.0,115780.0,0.68926297]
[1758127931265,0.00252,115790.0,115780.0,0.68926297]
[1758127931476,0.64214201,115790.0,115780.0,0.6039933]
[1758127931726,0.27412,115790.0,115780.0,0.2039933]
[1758127932943,0.27196,115790.0,115780.0,0.24704038]
[1758127933314,0.27196,115790.0,115780.0,0.2039933]
[1758127933707,0.27408,115790.0,115780.0,0.2039933]
[1758127933925,0.64210201,115790.0,115780.0,0.1738414]
[1758127934137,0.66655201,115790.0,115780.0,0.2039933]
[1758127935220,0.73495201,115790.0,115780.0,0.1738414]
[1758127935662,1.17923849,115790.0,115780.0,0.1738414]
[1758127937429,1.17933849,115790.0,115780.0,0.1738414]
[1758127939346,0.73505201,115790.0,115780.0,0.1738414]
[1758127939808,1.00653201,115790.0,115780.0,0.1738414]
[1758127940746,1.00649201,115790.0,115780.0,0.1738414]
[1758127944065,0.0005,115790.0,115780.0,0.39214847]
[1758127944360,0.0004,115790.0,115780.0,1.07839048]
[1758127944538,0.0004,115790.0,115780.0,0.80699048]
[1758127944975,1e-08,115790.0,115780.0,0.80599048]
[1758127945201,1e-08,115790.0,115780.0,0.88365999]
[1758127945431,1e-08,115790.0,115780.0,0.81544426]
[1758127946077,1e-08,115790.0,115780.0,0.45060225]
[1758127946292,1e-08,115790.0,115780.0,0.81544426]
[1758127946872,1e-08,115790.0,115780.0,0.81744426]
[1758127947300,1e-08,115790.0,115780.0,1.15744426]
[1758127947516,1e-08,115790.0,115780.0,1.55744426]
[1758127948259,1e-08,115790.0,115780.0,1.62064072]
[1758127955101,1e-08,115790.0,115780.0,1.25579871]
[1758127955531,1e-08,115790.0,115780.0,1.62064072]
[1758127968282,1e-08,115790.0,115780.0,1.25579871]
[1758127968498,0.36484202,115790.0,115780.0,0.73778058]
[1758127968699,0.39176202,115790.0,115780.0,0.26011107]
[1758127968900,0.36682202,115790.0,115780.0,0.26011107]
[1758127969101,0.00198001,115790.0,115780.0,0.29026297]
[1758127969301,1e-08,115790.0,115780.0,0.29026297]
[1758127969847,1e-08,115790.0,115780.0,0.37553264]
[1758127973598,1e-08,115790.0,115780.0,0.45320215]
[1758127974156,1e-08,115790.0,115780.0,0.85320215]
[1758127975852,1e-08,115790.0,115780.0,0.45320215]
[1758127976401,1e-08,115790.0,115780.0,0.85320215]
[1758127980265,0.00498001,115790.0,115780.0,0.85320215]
[1758127980472,0.02869001,115790.0,115780.0,0.85320215]
[1758127980924,0.02869001,115790.0,115780.0,0.77553264]
[1758127981171,0.36982202,115790.0,115780.0,0.69026297]
[1758127981388,0.39353202,115790.0,115780.0,0.69026297]
[1758127981838,0.36982202,115790.0,115780.0,0.69026297]
[1758127982061,0.39353202,115790.0,115780.0,0.29026297]
[1758127982552,0.39353202,115790.0,115780.0,0.69026297]
[1758127983657,0.39353202,115790.0,115780.0,0.6049933]
[1758127984375,0.02869001,115790.0,115780.0,0.6049933]
[1758127984594,0.39353202,115790.0,115780.0,0.6049933]
[1758127985622,0.39353202,115790.0,115780.0,0.2049933]
[1758127986049,0.39353202,115790.0,115780.0,0.6049933]
[1758127988017,0.43916533,115790.0,115780.0,0.6049933]
[1758127988933,0.43916533,115790.0,115780.0,0.2049933]
[1758127989610,0.43916533,115790.0,115780.0,0.6049933]
[1758127990666,0.43916533,115790.0,115780.0,0.2049933]
[1758127990667,0.523835,115790.0,115780.0,0.2049933]
[1758127990883,0.523835,115790.0,115780.0,0.1748414]
[1758127991088,0.78988148,115790.0,115780.0,0.1748414]
[1758127991296,0.617155,115790.0,115780.0,0.1748414]
[1758127991508,0.78988148,115790.0,115780.0,0.1748414]
[1758127991718,0.53188533,115790.0,115780.0,0.1728414]
[1758127992104,0.53288533,115790.0,115780.0,0.1728414]
[1758127993304,0.5413757,115790.0,115780.0,0.1728414]
[1758127993933,0.71420218,115790.0,115780.0,0.1728414]
[1758127994132,0.79947185,115790.0,115780.0,0.1728414]
[1758127994337,0.53298533,115790.0,115780.0,0.1728414]
[1758127994548,0.70571181,115790.0,115780.0,0.1728414]
[1758127996404,0.29523649,115790.0,115780.0,0.1728414]
[1758127996611,0.70571181,115790.0,115780.0,0.1728414]
[1758127998230,0.29523649,115790.0,115780.0,0.1728414]
[1758127998438,0.53298533,115790.0,115780.0,0.1728414]
[1758127998637,0.70571181,115790.0,115780.0,0.1728414]
[1758127999144,0.71422315,115790.0,115780.0,0.1728414]
[1758127999342,1.13949282,115790.0,115780.0,0.0001]
[1758128002419,1.05422315,115790.0,115780.0,0.0001]
[1758128003030,1.54996814,115790.0,115780.0,0.0001]
[1758128003460,1.13949282,115790.0,115780.0,0.0001]
[1758128004338,1.13849282,115790.0,115780.0,0.0001]
[1758128004541,1.14149282,115790.0,115780.0,0.0001]
[1758128008964,1.41309282,115790.0,115780.0,0.0001]
[1758128010892,1.0026175,115790.0,115780.0,0.0001]
[1758128011105,1.41309282,115790.0,115780.0,0.0001]
[1758128015143,1.14149282,115790.0,115780.0,0.1728414]
[1758128015347,1.41305282,115790.0,115780.0,0.1728414]
[1758128015827,0.44140001,115790.0,115780.0,0.23756306]
[1758128016026,1.14692533,115790.0,115780.0,0.2029933]
[1758128016232,1.31965181,115790.0,115780.0,0.1728414]
[1758128016431,1.41379606,115790.0,115780.0,0.1728414]
[1758128018275,1.24106958,115790.0,115780.0,0.1728414]
[1758128018918,0.55907426,115790.0,115780.0,0.1728414]
[1758128019125,1.24106958,115790.0,115780.0,0.1728414]
[1758128020737,1.41379606,115790.0,115780.0,0.1728414]
[1758128021262,1.41379606,115790.0,115780.0,0.0001]
[1758128021507,1.49906573,115790.0,115780.0,0.1728414]
[1758128022109,1.41379606,115790.0,115780.0,0.1728414]
[1758128022473,1.24106958,115790.0,115780.0,0.1728414]
[1758128022859,1.41379606,115790.0,115780.0,0.1728414]
[1758128024608,1.24106958,115790.0,115780.0,0.1728414]
[1758128025422,1.41379606,115790.0,115780.0,0.1728414]
[1758128027228,1.41379606,115790.0,115780.0,0.0001]
[1758128027655,1.41379606,115790.0,115780.0,0.1728414]
[1758128031221,1.41379606,115790.0,115780.0,0.0001]
[1758128031448,1.43906573,115790.0,115780.0,0.0001]
[1758128031665,1.44106573,115790.0,115780.0,0.0001]
[1758128032296,1.35579606,115790.0,115780.0,0.0001]
[1758128033511,1.35873606,115790.0,115780.0,0.0001]
[1758128041383,0.1727414,115780.0,115770.0,0.0001]
[1758128041587,1.27964639,115780.0,115770.0,0.0001]
[1758128041799,1.28162639,115780.0,115770.0,0.0001]
[1758128042006,1.39325606,115780.0,115770.0,0.0001]
[1758128042523,1.30798639,115780.0,115770.0,0.0001]
[1758128042741,1.30808639,115780.0,115770.0,0.0001]
[1758128042941,0.89761107,115780.0,115770.0,0.0001]
[1758128043161,1.30808639,115780.0,115770.0,0.0001]
[1758128043908,1.31008639,115780.0,115770.0,0.0001]
[1758128044959,1.39535606,115780.0,115770.0,0.0001]
[1758128045703,1.31008639,115780.0,115770.0,0.0001]
[1758128047967,1.26466884,115780.0,115770.0,0.0001]
[1758128049963,1.26438884,115780.0,115770.0,0.0001]
[1758128053030,0.99350884,115780.0,115770.0,0.0001]
[1758128053254,1.26434884,115780.0,115770.0,0.0001]
[1758128053472,1.26245884,115780.0,115770.0,0.17497632]
[1758128053708,1.17718917,115780.0,115770.0,0.17497632]
[1758128054139,0.36851,115780.0,115770.0,0.21008106]
[1758128054409,0.7858014,115780.0,115770.0,0.17817632]
[1758128054617,0.61306,115780.0,115770.0,0.17817632]
[1758128056748,0.3421,115780.0,115770.0,0.17817632]
[1758128056959,0.61306,115780.0,115770.0,0.17817632]
[1758128059140,0.61306,115780.0,115770.0,0.17497632]
[1758128059344,0.63749,115780.0,115770.0,0.17497632]
[1758128059999,0.63749,115780.0,115770.0,0.17817632]
[1758128060187,0.63749,115780.0,115770.0,0.17497632]
[1758128062004,0.61306,115780.0,115770.0,0.17497632]
[1758128064228,0.3421,115780.0,115770.0,0.36616169]
[1758128064424,0.0001,115790.0,115780.0,0.2028933]
[1758128064591,0.0001,115790.0,115780.0,0.65322074]
[1758128064797,0.0004,115800.0,115790.0,0.17272648]
[1758128065017,0.00054153,115800.0,115790.0,0.70394674]
[1758128065243,0.00054153,115800.0,115790.0,0.73256678]
[1758128065394,0.00054153,115800.0,115790.0,0.65487396]
[1758128066167,0.00054153,115800.0,115790.0,0.68081774]
[1758128066947,0.00054153,115800.0,115790.0,0.68091774]
[1758128067159,0.00054153,115800.0,115790.0,0.68191774]
[1758128068117,0.00054153,115800.0,115790.0,1.08191774]
[1758128073243,0.00054153,115800.0,115790.0,1.0554177]
[1758128078126,0.00054153,115800.0,115790.0,1.0855696]
[1758128086689,0.00054153,115800.0,115790.0,0.6855696]
[1758128088446,0.00054153,115800.0,115790.0,0.20189026]
[1758128088676,0.00256153,115800.0,115790.0,0.20189026]
[1758128088882,0.00054153,115800.0,115790.0,0.20189026]
[1758128089126,0.00054153,115800.0,115790.0,0.20508026]
[1758128089788,0.27110153,115800.0,115790.0,0.20508026]
[1758128092498,0.27110153,115800.0,115790.0,0.23523216]
[1758128095659,0.27110153,115800.0,115790.0,0.20508026]
[1758128095873,0.27110153,115800.0,115790.0,0.29034993]
[1758128096381,0.27110153,115800.0,115790.0,0.6554077]
[1758128096852,0.27110153,115800.0,115790.0,0.29034993]
[1758128097070,0.27110153,115800.0,115790.0,0.6554077]
[1758128097317,0.00054153,115800.0,115790.0,0.6554077]
[1758128097508,0.27110153,115800.0,115790.0,0.6554077]
[1758128097948,0.27110153,115800.0,115790.0,0.57013803]
[1758128099438,0.27110153,115800.0,115790.0,0.60028993]
[1758128101562,0.27110153,115800.0,115790.0,0.23523216]
[1758128101820,0.27110153,115800.0,115790.0,0.59709993]
[1758128102019,0.27110153,115800.0,115790.0,0.60032993]
[1758128102368,0.27110153,115800.0,115790.0,0.23527216]
[1758128102616,0.27110153,115800.0,115790.0,0.23204216]
[1758128103262,0.27110153,115800.0,115790.0,0.20512026]
[1758128104329,0.27325153,115800.0,115790.0,0.20189026]
[1758128104839,0.27110153,115800.0,115790.0,0.20503026]
[1758128107260,0.27110153,115800.0,115790.0,0.28796534]
[1758128107729,0.27110153,115800.0,115790.0,0.20503026]
[1758128109531,0.27110153,115800.0,115790.0,0.20189026]
[1758128109740,0.27110153,115800.0,115790.0,0.61226363]
[1758128111293,0.6866649,115800.0,115790.0,0.19977026]
[1758128111646,0.7109449,115800.0,115790.0,0.17382648]
[1758128111850,0.00054153,115800.0,115790.0,0.58946985]
[1758128112071,0.27110153,115800.0,115790.0,0.58946985]
[1758128114642,0.27110153,115800.0,115790.0,0.67473952]
[1758128115041,0.27110153,115800.0,115790.0,0.58946985]
[1758128116195,0.27110153,115800.0,115790.0,0.61541469]
[1758128116685,0.27110153,115800.0,115790.0,0.20504132]
[1758128116925,0.00054153,115800.0,115790.0,0.61541469]
[1758128117177,0.27110153,115800.0,115790.0,0.61541469]
[1758128118333,0.27110153,115800.0,115790.0,1.01541469]
[1758128118650,0.27110153,115800.0,115790.0,1.10068436]
[1758128119052,0.00054153,115800.0,115790.0,1.18595403]
[1758128119264,0.12282153,115800.0,115790.0,1.67402022]
[1758128119991,0.00054153,115800.0,115790.0,1.67402022]
[1758128120822,0.00054153,115800.0,115790.0,1.26364685]
[1758128121025,0.00054153,115800.0,115790.0,1.23770201]
[1758128121239,0.00054153,115800.0,115790.0,1.64807538]
[1758128121682,0.00054153,115800.0,115790.0,1.91863538]
[1758128122316,0.00054153,115800.0,115790.0,1.84094256]
[1758128122999,0.00054153,115800.0,115790.0,1.50820648]
[1758128123205,0.00054153,115800.0,115790.0,1.23764648]
[1758128123568,0.00054153,115800.0,115790.0,1.15237681]
[1758128129945,0.00054153,115800.0,115790.0,0.74200344]
[1758128130181,0.00054153,115800.0,115790.0,1.15237681]
[1758128135765,0.00054153,115800.0,115790.0,1.56275018]
[1758128136191,0.00054153,115800.0,115790.0,1.15237681]
[1758128136371,0.00054153,115800.0,115790.0,1.23764648]
[1758128138249,0.00054153,115800.0,115790.0,1.15237681]
[1758128146932,0.00054153,115800.0,115790.0,1.48511289]
[1758128147285,0.00054153,115800.0,115790.0,1.07473952]
[1758128148648,0.00054153,115800.0,115790.0,1.34521952]
[1758128151843,0.00054153,115800.0,115790.0,1.80559289]
[1758128152050,0.00054153,115800.0,115790.0,1.48048919]
[1758128153088,0.00054153,115800.0,115790.0,1.47948919]
[1758128153297,0.00054153,115800.0,115790.0,1.48248919]
[1758128156198,0.00054153,115800.0,115790.0,1.59062039]
[1758128157323,1e-08,115800.0,115790.0,2.00099376]
[1758128157948,1e-08,115800.0,115790.0,1.18024702]